bitfinex-derivatives/quotes_SOLF0:USTF0_20250803
["timestamp","ask_amount","ask_price","bid_price","bid_amount"]
[1754249801955,3.39,162.43,162.35,3.2]
[1754249802553,3.39,162.43,162.37,3.2]
[1754249803052,3.39,162.43,162.4,6.1572]
[1754249803352,3.39,162.43,162.42,3.2]
[1754249803555,6.1559,162.45,162.41,6.1569]
[1754249803847,3.39,162.45,162.42,3.21]
[1754249804049,3.39,162.45,162.43,6.1563]
[1754249804248,3.39,162.45,162.44,3.21]
[1754249804753,3.38,162.47,162.44,9.366]
[1754249804950,3.38,162.46,162.45,3.21]
[1754249805148,3.38,162.5,162.45,3.21]
[1754249805358,3.38,162.5,162.44,6.156]
[1754249805654,6.1541,162.49,162.46,3.21]
[1754249805855,237.03840864,162.53,162.36,113.48]
[1754249805856,3.38,162.52,162.47,3.21]
[1754249806156,3.38,162.51,162.43,3.21]
[1754249806356,3.38,162.5,162.47,6.1545]
[1754249807058,3.38,162.5,162.49,3.21]
[1754249807259,123.53840864,162.53,162.49,3.21]
[1754249807556,3.38,162.52,162.5,3.21]
[1754249807944,123.53840864,162.53,162.5,3.21]
[1754249808144,3.38,162.51,162.5,3.21]
[1754249809059,3.38,162.51,162.48,3.21]
[1754249809256,3.38,162.49,162.48,3.21]
[1754249809452,3.38,162.52,162.46,3.21]
[1754249809659,3.38,162.52,162.49,6.154]
[1754249809858,3.38,162.52,162.5,3.21]
[1754249810059,3.38,162.52,162.51,3.21]
[1754249810561,3.38,162.52,162.46,3.21]
[1754249811258,3.38,162.51,162.49,3.21]
[1754249811460,3.38,162.5,162.49,3.21]
[1754249813255,3.38,162.51,162.5,3.21]
[1754249817370,9.5333,162.51,162.5,3.21]
[1754249817673,3.38,162.51,162.48,3.21]
[1754249817968,3.38,162.51,162.49,3.21]
[1754249818269,3.38,162.5,162.49,3.21]
[1754249819369,3.38,162.49,162.47,6.1548]
[1754249819560,3.38,162.49,162.48,3.21]
[1754249822072,3.38,162.52,162.46,3.21]
[1754249822668,3.38,162.51,162.44,3.21]
[1754249822865,3.38,162.51,162.46,3.21]
[1754249823070,6.1548,162.47,162.46,3.21]
[1754249823273,9.5348,162.47,162.46,3.21]
[1754249823475,3.38,162.47,162.46,3.21]
[1754249823970,3.38,162.47,162.42,3.21]
[1754249824171,113.36,162.5,162.42,3.21]
[1754249824376,3.38,162.46,162.42,3.21]
[1754249824772,3.38,162.46,162.45,3.21]
[1754249826975,3.38,162.47,162.39,3.21]
[1754249827170,6.18433544,162.46,162.39,3.21]
[1754249827371,6.1566,162.43,162.39,9.3678]
[1754249827673,6.1566,162.43,162.4,3.21]
[1754249827674,3.38,162.42,162.4,3.21]
[1754249827877,3.38,162.41,162.4,3.21]
[1754249829171,3.38,162.41,162.38,9.3679]
[1754249829577,3.38,162.41,162.39,3.21]
[1754249830580,3.38,162.41,162.37,3.21]
[1754249830781,6.18433544,162.41,162.37,3.21]
[1754249830974,3.38,162.4,162.37,3.21]
[1754249831175,6.1579,162.39,162.37,3.21]
[1754249831478,3.38,162.38,162.37,3.21]
[1754249832383,3.38,162.4,162.37,3.21]
[1754249832584,3.38,162.39,162.37,3.21]
[1754249832880,3.38,162.39,162.32,6.18433544]
[1754249833074,3.38,162.39,162.33,3.21]
[1754249833684,3.38,162.39,162.36,6.1587]
[1754249833978,3.38,162.39,162.38,3.51]
[1754249834880,3.38,162.39,162.36,9.6687]
[1754249835079,3.38,162.39,162.37,3.51]
[1754249835270,3.35,162.4,162.33,3.51]
[1754249835680,3.35,162.38,162.33,3.51]
[1754249835875,3.35,162.38,162.34,3.51]
[1754249836381,3.35,162.36,162.35,3.51]
[1754249836581,3.35,162.38,162.31,6.18433544]
[1754249836777,6.1582,162.38,162.36,3.51]
[1754249836980,6.1582,162.38,162.34,6.1594]
[1754249837172,3.35,162.36,162.35,3.51]
[1754249837573,6.1582,162.38,162.35,3.51]
[1754249837769,6.1582,162.38,162.36,3.51]
[1754249838678,6.1582,162.38,162.37,9.69433544]
[1754249840478,113.34,162.45,162.36,6.18433544]
[1754249840679,3.35,162.4,162.38,3.51]
[1754249840878,3.35,162.41,162.38,3.51]
[1754249841383,3.35,162.41,162.39,6.1578]
[1754249841585,3.35,162.41,162.4,3.51]
[1754249842781,6.1566,162.43,162.4,3.51]
[1754249842782,6.156,162.44,162.4,6.1575]
[1754249842980,6.156,162.44,162.38,6.18433544]
[1754249842981,3.35,162.43,162.42,3.51]
[1754249843683,3.35,162.42,162.41,3.51]
[1754249843884,3.35,162.42,162.39,3.51]
[1754249844483,3.35,162.42,162.4,3.51]
[1754249844888,9.507,162.42,162.4,3.51]
[1754249845079,3.35,162.41,162.4,3.51]
[1754249846189,6.1562,162.44,162.4,3.51]
[1754249846389,3.35,162.46,162.41,3.51]
[1754249846585,6.18433544,162.5,162.42,6.18433544]
[1754249846892,3.35,162.49,162.43,3.51]
[1754249847091,6.1551,162.47,162.43,3.51]
[1754249847390,6.18433544,162.5,162.44,3.51]
[1754249847690,3.35,162.45,162.44,3.51]
[1754249847984,113.42,162.52,162.4,3.51]
[1754249847985,6.18433544,162.48,162.4,3.51]
[1754249848192,3.35,162.47,162.41,3.51]
[1754249848387,6.1559,162.45,162.42,6.1566]
[1754249848583,3.35,162.44,162.43,3.51]
[1754249849884,9.506,162.44,162.4,6.18433544]
[1754249850087,3.35,162.43,162.42,3.51]
[1754249855291,6.18433544,162.46,162.37,6.18433544]
[1754249855495,3.35,162.45,162.37,6.18433544]
[1754249855696,6.18433544,162.44,162.35,6.18433544]
[1754249855996,6.18433544,162.44,162.38,3.51]
[1754249856295,3.35,162.39,162.38,3.51]
[1754249858184,3.35,162.39,162.37,6.1586]
[1754249858392,9.53433544,162.4,162.34,3.51]
[1754249858593,3.35,162.39,162.35,6.1591]
[1754249858894,3.35,162.37,162.36,3.51]
[1754249859287,6.1583,162.38,162.31,6.18433544]
[1754249859495,3.35,162.36,162.31,6.18433544]
[1754249859688,6.158,162.39,162.33,6.18433544]
[1754249859891,3.35,162.46,162.38,3.51]
[1754249860097,3.35,162.46,162.4,3.51]
[1754249860800,6.1553,162.46,162.42,6.1564]
[1754249861099,6.18433544,162.47,162.4,3.51]
[1754249861298,413.64,162.5,162.37,6.18433544]
[1754249861299,3.35,162.44,162.38,3.51]
[1754249861492,6.18433544,162.43,162.38,3.51]
[1754249861697,3.35,162.44,162.38,3.51]
[1754249862799,3.35,162.42,162.4,3.51]
[1754249862999,3.35,162.42,162.39,6.1577]
[1754249863193,3.35,162.42,162.41,3.51]
[1754249865599,9.3761,162.44,162.4,9.6274]
[1754249865810,3.22,162.47,162.4,3.47]
[1754249867195,3.22,162.46,162.43,3.47]
[1754249867400,113.68,162.48,162.43,3.47]
[1754249867596,3.22,162.48,162.44,3.47]
[1754249867902,3.22,162.49,162.48,3.47]
[1754249868593,3.22,162.49,162.45,6.18433544]
[1754249868594,3.22,162.48,162.47,3.47]
[1754249870602,3.22,162.5,162.47,3.47]
[1754249870807,3.22,162.52,162.47,3.47]
[1754249871205,6.1532,162.52,162.47,6.1545]
[1754249871500,6.1532,162.52,162.45,6.18433544]
[1754249871501,3.22,162.5,162.49,3.47]
[1754249871804,3.22,162.5,162.45,6.18433544]
[1754249872007,3.22,162.5,162.47,3.47]
[1754249872206,3.22,162.5,162.41,5.11171439]
[1754249872207,3.22,162.52,162.44,6.18433544]
[1754249872409,6.1534,162.51,162.46,6.1549]
[1754249872604,3.22,162.5,162.47,3.47]
[1754249872801,3.22,162.49,162.48,3.47]
[1754249875103,123.53840864,162.53,162.48,3.47]
[1754249875304,3.22,162.5,162.48,3.47]
[1754249875507,3.22,162.5,162.46,6.18433544]
[1754249875704,3.22,162.5,162.47,3.47]
[1754249875910,3.22,162.49,162.48,3.47]
[1754249876107,3.22,162.49,162.41,9.65433544]
[1754249876411,3.22,162.46,162.45,3.47]
[1754249877501,6.1546,162.48,162.45,3.47]
[1754249877703,3.22,162.54,162.46,3.47]
[1754249877907,3.22,162.52,162.46,3.47]
[1754249879212,6.1535,162.51,162.47,6.1545]
[1754249879411,3.22,162.5,162.47,6.1545]
[1754249879611,3.22,162.5,162.49,3.47]
[1754249880518,9.373,162.52,162.49,3.47]
[1754249880716,119.90433544,162.55,162.49,3.47]
[1754249881015,3.22,162.5,162.49,3.47]
[1754249881217,3.22,162.5,162.43,6.18433544]
[1754249881413,9.374,162.5,162.46,3.47]
[1754249881711,3.22,162.49,162.46,3.47]
[1754249881913,3.22,162.49,162.45,6.1553]
[1754249882216,3.22,162.49,162.47,3.47]
[1754249882614,6.1543,162.49,162.47,3.47]
[1754249882818,3.22,162.48,162.45,3.47]
[1754249883220,6.18433544,162.52,162.42,6.18433544]
[1754249883418,3.22,162.47,162.46,3.47]
[1754249883817,3.22,162.54,162.46,3.47]
[1754249884312,3.22,162.54,162.48,6.1544]
[1754249884513,3.22,162.54,162.49,3.47]
[1754249884813,3.22,162.53,162.49,3.47]
[1754249885016,6.1532,162.52,162.49,3.47]
[1754249885219,3.22,162.5,162.49,3.47]
[1754249886014,3.22,162.49,162.47,3.47]
[1754249886316,3.22,162.49,162.48,3.47]
[1754249887217,6.1538,162.5,162.46,6.1552]
[1754249887218,3.22,162.53,162.46,6.18433544]
[1754249887410,3.22,162.53,162.47,3.47]
[1754249887615,3.22,162.51,162.45,3.47]
[1754249887815,3.22,162.46,162.45,3.47]
[1754249888817,3.22,162.49,162.43,3.47]
[1754249889016,3.22,162.49,162.44,6.18433544]
[1754249889318,3.22,162.49,162.47,3.47]
[1754249889520,119.96433544,162.54,162.47,3.47]
[1754249889521,3.22,162.5,162.47,3.47]
[1754249890520,3.22,162.5,162.48,3.47]
[1754249890824,3.22,162.5,162.49,3.47]
[1754249891323,9.3737,162.5,162.49,3.47]
[1754249891513,3.22,162.53,162.47,3.47]
[1754249891709,6.1541,162.5,162.47,3.47]
[1754249891913,3.22,162.48,162.47,3.47]
[1754249892322,3.22,162.51,162.46,3.47]
[1754249892521,3.22,162.51,162.44,6.1559]
[1754249892826,6.154,162.5,162.45,3.47]
[1754249893021,3.22,162.54,162.46,3.47]
[1754249894221,3.2,162.52,162.46,3.47]
[1754249894717,6.18433544,162.54,162.46,6.155]
[1754249894718,6.154,162.5,162.46,6.155]
[1754249894923,3.2,162.48,162.47,3.24]
[1754249895922,3.2,162.48,162.47,9.3949]
[1754249896122,3.2,162.49,162.48,3.24]
[1754249897025,9.3541,162.49,162.48,3.24]
[1754249897324,6.1541,162.49,162.48,3.24]
[1754249897627,3.2,162.49,162.48,3.24]
[1754249898423,3.2,162.48,162.47,3.24]
[1754249898816,9.38433544,162.54,162.47,3.24]
[1754249899017,3.2,162.53,162.47,3.24]
[1754249899229,3.2,162.53,162.47,6.1548]
[1754249899427,3.2,162.53,162.48,3.24]
[1754249899728,3.2,162.49,162.46,9.395]
[1754249899926,6.154,162.5,162.45,6.18433544]
[1754249900130,6.154,162.5,162.46,3.24]
[1754249900329,3.2,162.49,162.46,3.24]
[1754249900531,3.2,162.48,162.46,3.24]
[1754249901131,3.2,162.48,162.46,6.1551]
[1754249901326,3.2,162.48,162.47,3.24]
[1754249902731,3.2,162.48,162.44,3.24]
[1754249903132,3.2,162.48,162.47,3.24]
[1754249904629,3.2,162.49,162.48,3.24]
[1754249906634,3.2,162.53,162.48,3.24]
[1754249907737,3.2,162.54,162.48,3.24]
[1754249908726,9.3524,162.54,162.5,6.1535]
[1754249908922,3.2,162.52,162.51,3.24]
[1754249916644,9.353,162.52,162.51,3.24]
[1754249917048,3.2,162.52,162.51,3.24]
[1754249918444,9.353,162.52,162.51,3.24]
[1754249918846,3.2,162.56,162.49,3.24]
[1754249919143,6.1534,162.51,162.49,3.24]
[1754249919344,3.2,162.56,162.49,9.3939]
[1754249919535,3.2,162.56,162.5,3.24]
[1754249919740,6.18433544,162.53,162.46,3.24]
[1754249919941,3.2,162.5,162.44,3.24]
[1754249920345,3.2,162.47,162.44,3.24]
[1754249920741,3.2,162.46,162.44,3.24]
[1754249921348,3.2,162.46,162.45,3.24]
[1754249921751,9.3552,162.46,162.45,3.24]
[1754249921949,3.2,162.51,162.46,3.24]
[1754249922250,3.2,162.51,162.43,6.18433544]
[1754249922443,3.2,162.51,162.44,3.24]
[1754249922637,6.1541,162.49,162.44,9.3957]
[1754249922849,3.2,162.47,162.45,3.24]
[1754249923851,6.18433544,162.5,162.44,3.4]
[1754249924147,3.34,162.49,162.44,3.4]
[1754249924946,6.1551,162.47,162.44,3.4]
[1754249925149,7.92396961,162.46,162.44,3.4]
[1754249925349,3.34,162.46,162.44,3.4]
[1754249926256,6.18433544,162.5,162.45,3.4]
[1754249926456,4.5837237,162.49,162.46,3.4]
[1754249926652,4.5837237,162.48,162.46,3.4]
[1754249926853,7.9237237,162.47,162.46,3.4]
[1754249927255,14.0787237,162.47,162.46,3.4]
[1754249927457,10.7387237,162.47,162.44,3.4]
[1754249927651,3.34,162.45,162.44,3.4]
[1754249934062,3.34,162.45,162.43,3.4]
[1754249934363,3.34,162.45,162.44,3.4]
[1754249936263,3.34,162.45,162.42,3.4]
[1754249936661,4.61074618,162.44,162.4,3.4]
[1754249936967,3.34,162.42,162.4,3.4]
[1754249937166,4.61157728,162.41,162.38,8.51171439]
[1754249937356,3.34,162.39,162.38,3.4]
[1754249937559,3.34,162.39,162.37,8.51171439]
[1754249938059,3.34,162.38,162.37,5.11171439]
[1754249938359,3.34,162.48,162.37,6.18433544]
[1754249938560,3.34,162.46,162.42,3.4]
[1754249938759,4.60723884,162.45,162.42,3.4]
[1754249938965,7.94723884,162.44,162.42,3.4]
[1754249939156,3.34,162.44,162.42,3.4]
[1754249939761,6.1559,162.45,162.4,9.5572]
[1754249939957,6.1559,162.45,162.41,3.4]
[1754249940162,3.34,162.43,162.41,3.4]
[1754249941469,6.1559,162.45,162.41,3.4]
[1754249941663,3.34,162.43,162.41,3.4]
[1754249943365,3.34,162.46,162.4,3.4]
[1754249944764,3.34,162.43,162.41,3.4]
[1754249945276,3.34,162.42,162.41,3.4]
[1754249946475,3.34,162.41,162.4,3.4]
[1754249947871,6.1571,162.41,162.39,3.4]
[1754249948074,3.34,162.4,162.39,3.4]
[1754249948382,3.34,162.4,162.37,3.4]
[1754249948577,13.09769552,162.5,162.35,3.4]
[1754249948578,3.34,162.42,162.35,3.4]
[1754249948979,6.1585,162.38,162.35,3.4]
[1754249949275,3.34,162.4,162.35,3.4]
[1754249949676,6.18433544,162.41,162.35,3.4]
[1754249949879,4.59030803,162.4,162.35,3.4]
[1754249950178,3.34,162.38,162.35,3.4]
[1754249950780,3.34,162.36,162.32,121.9432257]
[1754249950975,3.34,162.38,162.32,116.8]
[1754249951280,6.18433544,162.39,162.28,5.1432257]
[1754249951480,6.18433544,162.39,162.3,6.18433544]
[1754249951775,3.34,162.34,162.3,6.18433544]
[1754249952175,3.34,162.34,162.32,3.4]
[1754249952380,3.34,162.33,162.32,3.4]
[1754249952682,3.34,162.38,162.32,3.4]
[1754249952877,6.18433544,162.39,162.29,5.1432257]
[1754249953079,7.92402017,162.38,162.3,3.4]
[1754249953280,3.34,162.37,162.3,3.4]
[1754249953683,6.1594,162.35,162.31,6.1607]
[1754249953987,3.51,162.34,162.32,3.31]
[1754249954986,3.51,162.34,162.33,3.31]
[1754249957176,3.51,162.38,162.33,3.31]
[1754249957377,3.51,162.4,162.34,3.31]
[1754249958278,9.6678,162.4,162.34,3.31]
[1754249958586,3.51,162.38,162.34,3.31]
[1754249958783,3.51,162.38,162.35,6.1593]
[1754249958987,3.51,162.38,162.34,3.31]
[1754249959179,3.51,162.38,162.32,3.31]
[1754249959583,3.51,162.35,162.32,3.31]
[1754249959786,6.1593,162.36,162.32,3.31]
[1754249959987,3.51,162.34,162.32,3.31]
[1754249960481,6.1587,162.37,162.32,3.31]
[1754249960687,3.51,162.36,162.32,3.31]
[1754249960885,3.51,162.36,162.31,6.18433544]
[1754249960886,3.51,162.35,162.33,6.1601]
[1754249961086,3.51,162.35,162.34,3.31]
[1754249961489,3.51,162.35,162.34,9.4698]
[1754249961988,3.51,162.36,162.34,3.31]
[1754249962286,3.51,162.36,162.35,3.31]
[1754249963081,3.51,162.38,162.35,3.31]
[1754249963585,6.1585,162.38,162.35,3.31]
[1754249963783,3.51,162.36,162.35,3.31]
[1754249964587,6.1589,162.37,162.32,6.1603]
[1754249964588,3.51,162.39,162.33,3.31]
[1754249965087,3.51,162.36,162.33,3.31]
[1754249965483,3.51,162.36,162.34,3.31]
[1754249965686,3.51,162.35,162.33,6.1601]
[1754249966289,3.51,162.35,162.34,3.31]
[1754249967090,3.51,162.39,162.34,3.31]
[1754249967485,3.51,162.39,162.35,3.31]
[1754249967882,3.51,162.37,162.31,6.18433544]
[1754249968093,3.51,162.36,162.35,3.31]
[1754249969190,3.51,162.45,162.35,3.31]
[1754249969488,3.51,162.43,162.36,3.31]
[1754249969685,4.58430456,162.42,162.36,6.1587]
[1754249969890,3.51,162.4,162.37,3.31]
[1754249970095,3.51,162.39,162.37,3.31]
[1754249970795,3.51,162.39,162.38,3.31]
[1754249974193,3.51,162.4,162.38,3.31]
[1754249975393,3.51,162.39,162.37,6.1586]
[1754249975996,3.51,162.39,162.38,3.31]
[1754249977101,3.51,162.39,162.33,6.18433544]
[1754249977301,3.51,162.39,162.35,3.31]
[1754249977597,3.51,162.37,162.36,3.31]
[1754249977793,3.51,162.37,162.35,3.31]
[1754249977998,3.51,162.36,162.34,6.1595]
[1754249978195,3.51,162.36,162.33,12.34433544]
[1754249978397,3.51,162.36,162.33,6.18433544]
[1754249978598,3.51,162.36,162.34,3.31]
[1754249978799,3.51,162.36,162.34,9.4695]
[1754249979098,3.51,162.36,162.35,3.31]
[1754249979495,3.51,162.38,162.35,3.31]
[1754249982702,9.6683,162.38,162.35,3.31]
[1754249982898,6.18433544,162.43,162.34,6.1595]
[1754249983094,3.51,162.36,162.34,6.1595]
[1754249983499,3.51,162.36,162.35,3.31]
[1754249983695,3.32,162.4,162.32,3.51]
[1754249983901,3.32,162.38,162.32,3.51]
[1754249984705,3.32,162.37,162.33,6.1599]
[1754249984909,3.32,162.37,162.34,3.51]
[1754249985811,3.32,162.37,162.34,9.6697]
[1754249986012,3.32,162.38,162.35,3.51]
[1754249986212,3.32,162.37,162.35,3.51]
[1754249986512,3.32,162.36,162.34,6.1597]
[1754249986711,6.1581,162.39,162.34,6.1597]
[1754249986912,3.32,162.35,162.34,6.1597]
[1754249987214,3.32,162.35,162.34,9.6697]
[1754249988303,6.1581,162.39,162.34,6.1597]
[1754249988512,3.32,162.37,162.35,3.51]
[1754249991316,7.92778825,162.36,162.35,3.51]
[1754249992921,7.92778825,162.36,162.35,9.6694]
[1754249993312,7.92778825,162.36,162.35,3.51]
[1754249994416,7.92778825,162.36,162.31,5.12424361]
[1754249994616,3.32,162.4,162.34,3.51]
[1754249994815,4.61009723,162.39,162.35,6.1591]
[1754249995015,4.61009723,162.38,162.34,3.51]
[1754249995215,13.09769552,162.45,162.36,3.51]
[1754249995416,3.32,162.41,162.38,3.51]
[1754249995615,3.32,162.39,162.37,6.1584]
[1754249996223,3.32,162.39,162.38,3.51]
[1754249996420,7.92866368,162.39,162.38,3.51]
[1754249999822,4.60866368,162.39,162.38,9.6682]
[1754250000018,3.32,162.41,162.38,6.1582]
[1754250000219,7.92881402,162.4,162.39,3.51]
[1754250005127,7.92881402,162.4,162.38,3.51]
[1754250005328,7.92855207,162.39,162.38,3.51]
[1754250006430,7.92855207,162.39,162.38,9.6682]
[1754250006832,7.92855207,162.39,162.38,3.51]
[1754250008332,7.92855207,162.39,162.38,9.6682]
[1754250010434,7.92855207,162.39,162.38,3.51]
[1754250010732,7.92855207,162.39,162.38,7.47295481]
[1754250011234,7.92855207,162.39,162.38,13.63115481]
[1754250012434,6.91336008,162.46,162.41,3.51]
[1754250012633,4.60834858,162.45,162.44,7.47295481]
[1754250012832,79.21956052,162.47,162.44,7.47295481]
[1754250013037,3.32,162.46,162.44,7.47295481]
[1754250013827,6.1553,162.46,162.44,7.47295481]
[1754250014032,3.27,162.45,162.44,3.96295481]
[1754250014434,9.4256,162.45,162.44,3.96295481]
[1754250014638,9.4256,162.45,162.44,3.47]
[1754250015642,3.27,162.43,162.41,3.47]
[1754250015844,3.27,162.46,162.41,3.47]
[1754250016140,3.27,162.46,162.42,3.47]
[1754250016941,3.27,162.44,162.42,3.47]
[1754250017142,3.27,162.44,162.37,5.12424361]
[1754250017143,4.5909975,162.43,162.38,3.47]
[1754250017344,6.18782639,162.45,162.38,3.47]
[1754250017345,3.27,162.41,162.38,3.47]
[1754250017638,3.27,162.37,162.36,3.47]
[1754250018741,3.27,162.37,162.34,3.47]
[1754250019240,3.27,162.36,162.35,3.47]
[1754250020035,3.27,162.38,162.29,11.31769197]
[1754250020336,3.27,162.36,162.34,3.47]
[1754250020538,3.27,162.35,162.32,3.47]
[1754250021033,3.27,162.35,162.31,6.18782639]
[1754250021229,3.27,162.35,162.29,6.18782639]
[1754250021433,3.27,162.33,162.28,3.47]
[1754250021635,6.1604,162.33,162.28,6.1617]
[1754250021838,3.27,162.31,162.29,3.47]
[1754250022045,3.27,162.34,162.28,3.47]
[1754250022239,3.27,162.32,162.29,3.47]
[1754250022541,3.27,162.3,162.29,3.47]
[1754250023838,9.4313,162.3,162.29,3.47]
[1754250024035,4.60173584,162.3,162.27,3.47]
[1754250024340,6.1608,162.32,162.27,6.1621]
[1754250024540,3.27,162.3,162.28,3.47]
[1754250024940,3.27,162.3,162.27,6.1621]
[1754250025141,3.27,162.3,162.29,3.47]
[1754250029431,3.27,162.3,162.29,9.6317]
[1754250029843,3.27,162.3,162.29,3.47]
[1754250032333,6.1603,162.33,162.29,3.47]
[1754250032540,6.18782639,162.35,162.29,3.47]
[1754250032541,3.27,162.34,162.29,3.47]
[1754250032848,6.16,162.34,162.29,3.47]
[1754250033043,3.27,162.33,162.29,9.6314]
[1754250033341,3.27,162.33,162.31,3.47]
[1754250033741,9.4302,162.33,162.3,3.47]
[1754250033944,3.27,162.32,162.29,3.47]
[1754250034646,3.27,162.34,162.27,6.1624]
[1754250034845,3.27,162.34,162.28,3.47]
[1754250035150,6.1608,162.32,162.27,6.1624]
[1754250035343,3.27,162.31,162.29,3.47]
[1754250035742,3.27,162.3,162.25,6.18782639]
[1754250035943,6.1609,162.31,162.25,6.18782639]
[1754250036145,3.27,162.29,162.25,6.18782639]
[1754250036339,3.27,162.29,162.26,3.47]
[1754250037050,6.1606,162.32,162.25,6.18782639]
[1754250037252,3.27,162.3,162.28,3.47]
[1754250040557,6.161,162.31,162.27,6.1621]
[1754250040857,3.27,162.3,162.29,3.47]
[1754250041653,9.4313,162.3,162.29,3.47]
[1754250041956,6.1613,162.3,162.27,3.47]
[1754250042148,3.27,162.29,162.28,3.47]
[1754250045755,3.27,162.29,162.11,13.86038704]
[1754250045756,3.27,162.29,162.24,3.41]
[1754250046457,6.1623,162.28,162.24,6.1635]
[1754250046654,3.45,162.27,162.26,3.41]
[1754250047762,3.45,162.26,162.24,3.41]
[1754250048356,9.6132,162.25,162.22,3.41]
[1754250048656,6.18782639,162.27,162.19,3.41]
[1754250048862,3.45,162.25,162.2,3.41]
[1754250049356,3.45,162.21,162.2,3.41]
[1754250049954,3.45,162.21,162.19,3.41]
[1754250050152,3.45,162.24,162.19,6.1653]
[1754250050347,3.45,162.24,162.21,3.41]
[1754250050548,9.6136,162.24,162.22,3.41]
[1754250050861,3.45,162.23,162.22,3.41]
[1754250051955,3.45,162.23,162.2,3.41]
[1754250052152,3.45,162.23,162.18,3.41]
[1754250052358,3.45,162.23,162.16,3.41]
[1754250052656,6.1647,162.21,162.19,3.41]
[1754250052855,3.45,162.2,162.19,3.41]
[1754250053657,3.45,162.2,162.17,6.1659]
[1754250053658,3.45,162.22,162.17,3.41]
[1754250054251,6.1654,162.2,162.18,3.41]
[1754250054454,3.45,162.19,162.18,3.41]
[1754250054648,6.1654,162.2,162.13,6.18782639]
[1754250054853,3.45,162.19,162.14,3.41]
[1754250055950,3.45,162.18,162.15,3.41]
[1754250056157,3.45,162.2,162.14,3.41]
[1754250056456,3.45,162.16,162.13,3.41]
[1754250056663,3.45,162.15,162.08,113.1]
[1754250056850,3.45,162.14,162.11,3.41]
[1754250057458,3.45,162.18,162.11,3.41]
[1754250057950,3.45,162.15,162.13,3.41]
[1754250058152,6.1669,162.16,162.13,3.41]
[1754250058354,3.45,162.14,162.13,3.41]
[1754250060375,79.06739699,162.24,162.13,3.41]
[1754250060562,79.06739699,162.24,162.17,6.1662]
[1754250060563,3.45,162.22,162.17,6.1662]
[1754250060868,79.06739699,162.24,162.18,3.41]
[1754250061057,3.45,162.21,162.18,3.41]